[Event "Titled Tuesday Blitz January 17 Early 2023"]
[White "UnknownMagician"]
[Black "Aravindh, Chithambaram VR."]
[BlackFideId "5072786"]
[WhiteElo "2637"]
[BlackElo "2633"]
[Result "1/2-1/2"]
[Round "02"]
[TimeControl "180+2"]
[Date "2023.01.17"]
[WhiteClock "0:00:09"]
[BlackClock "0:00:05"]

1. c4 {[%clk 0:03:00]}  d6 {[%clk 0:02:53]} 2. Nc3 {[%clk 0:02:58]}  f5 {[%clk 0:02:51]} 3. g3 {[%clk 0:02:56]}  Nf6 {[%clk 0:02:52]} 4. Bg2 {[%clk 0:02:56]}  g6 {[%clk 0:02:53]} 5. Nf3 {[%clk 0:02:56]}  Bg7 {[%clk 0:02:53]} 6. O-O {[%clk 0:02:55]}  e5 {[%clk 0:02:53]} 7. d3 {[%clk 0:02:55]}  O-O {[%clk 0:02:53]} 8. Rb1 {[%clk 0:02:55]}  Nc6 {[%clk 0:02:53]} 9. b4 {[%clk 0:02:53]}  h6 {[%clk 0:02:48]} 10. b5 {[%clk 0:02:51]}  Ne7 {[%clk 0:02:48]} 11. a4 {[%clk 0:02:46]}  g5 {[%clk 0:02:48]} 12. e3 {[%clk 0:02:44]}  Ng6 {[%clk 0:02:47]} 13. a5 {[%clk 0:02:41]}  Rb8 {[%clk 0:02:44]} 14. Ba3 {[%clk 0:02:34]}  Rf7 {[%clk 0:02:36]} 15. Nd2 {[%clk 0:02:26]}  f4 {[%clk 0:02:31]} 16. b6 {[%clk 0:02:21]}  axb6 {[%clk 0:02:30]} 17. axb6 {[%clk 0:02:22]}  c6 {[%clk 0:02:27]} 18. d4 {[%clk 0:02:22]}  Ng4 {[%clk 0:02:15]} 19. exf4 {[%clk 0:01:48]}  gxf4 {[%clk 0:02:03]} 20. dxe5 {[%clk 0:01:44]}  Bxe5 {[%clk 0:01:49]} 21. Nce4 {[%clk 0:01:37]}  fxg3 {[%clk 0:01:44]} 22. hxg3 {[%clk 0:01:35]}  Bf5 {[%clk 0:01:32]} 23. Rb3 {[%clk 0:01:14]}  c5 {[%clk 0:01:22]} 24. Bb2 {[%clk 0:00:53]}  Bxb2 {[%clk 0:01:10]} 25. Rxb2 {[%clk 0:00:54]}  N6e5 {[%clk 0:01:11]} 26. Rb3 {[%clk 0:00:51]}  Kh7 {[%clk 0:01:08]} 27. f4 {[%clk 0:00:49]}  Nc6 {[%clk 0:01:06]} 28. Rd3 {[%clk 0:00:39]}  Nd4 {[%clk 0:01:00]} 29. Nb3 {[%clk 0:00:39]}  Qxb6 {[%clk 0:00:39]} 30. Nxd4 {[%clk 0:00:37]}  cxd4 {[%clk 0:00:40]} 31. Rxd4 {[%clk 0:00:24]}  Re8 {[%clk 0:00:10]} 32. Nxd6 {[%clk 0:00:22]}  Ne3 {[%clk 0:00:06]} 33. Qd2 {[%clk 0:00:19]}  Rd8 {[%clk 0:00:03]} 34. Qxe3 {[%clk 0:00:17]}  Rxd6 {[%clk 0:00:03]} 35. Bd5 {[%clk 0:00:10]}  Rfd7 {[%clk 0:00:03]} 36. Kh2 {[%clk 0:00:07]}  Qd8 {[%clk 0:00:03]} 37. Re1 {[%clk 0:00:05]}  Qf6 {[%clk 0:00:03]} 38. Qe8 {[%clk 0:00:04]}  Qg7 {[%clk 0:00:03]} 39. Re5 {[%clk 0:00:03]}  Rd8 {[%clk 0:00:03]} 40. Qe7 {[%clk 0:00:02]}  Qxe7 {[%clk 0:00:03]} 41. Rxe7+ {[%clk 0:00:02]}  Kg6 {[%clk 0:00:04]} 42. Re5 {[%clk 0:00:03]}  Kf6 {[%clk 0:00:04]} 43. Kg2 {[%clk 0:00:02]}  b5 {[%clk 0:00:05]} 44. cxb5 {[%clk 0:00:03]}  Rxd5 {[%clk 0:00:05]} 45. Rdxd5 {[%clk 0:00:03]}  Rxd5 {[%clk 0:00:06]} 46. Rxd5 {[%clk 0:00:03]}  Be4+ {[%clk 0:00:06]} 47. Kh3 {[%clk 0:00:02]}  Bxd5 {[%clk 0:00:07]} 48. Kh4 {[%clk 0:00:02]}  Kg6 {[%clk 0:00:07]} 49. g4 {[%clk 0:00:02]}  Bf3 {[%clk 0:00:07]} 50. Kg3 {[%clk 0:00:02]}  Be2 {[%clk 0:00:05]} 51. b6 {[%clk 0:00:03]}  Ba6 {[%clk 0:00:05]} 52. Kh4 {[%clk 0:00:02]}  Bb7 {[%clk 0:00:04]} 53. f5+ {[%clk 0:00:01]}  Kg7 {[%clk 0:00:04]} 54. Kh5 {[%clk 0:00:02]}  Bf3 {[%clk 0:00:04]} 55. b7 {[%clk 0:00:02]}  Bxb7 {[%clk 0:00:04]} 56. f6+ {[%clk 0:00:03]}  Kh7 {[%clk 0:00:02]} 57. f7 {[%clk 0:00:03]}  Kg7 {[%clk 0:00:03]} 58. f8=Q+ {[%clk 0:00:03]}  Kxf8 {[%clk 0:00:04]} 59. Kxh6 {[%clk 0:00:04]}  Kg8 {[%clk 0:00:04]} 60. g5 {[%clk 0:00:05]}  Be4 {[%clk 0:00:04]} 61. g6 {[%clk 0:00:06]}  Bf5 {[%clk 0:00:04]} 62. g7 {[%clk 0:00:06]}  Bg6 {[%clk 0:00:05]} 63. Kg5 {[%clk 0:00:07]}  Bh7 {[%clk 0:00:05]} 64. Kf6 {[%clk 0:00:08]}  Bg6 {[%clk 0:00:05]} 65. Kg5 {[%clk 0:00:09]}  Kxg7 {[%clk 0:00:05]} 1/2-1/2


[Site "https://www.chess.com"]

[Event "Titled Tuesday Blitz January 17 Early 2023"]
[White "Mitrabha, Guha"]
[Black "Djokovic, Nebojsa"]
[WhiteFideId "5057000"]
[BlackFideId "938300"]
[WhiteElo "2507"]
[BlackElo "2119"]
[Result "1-0"]
[Round "02"]
[TimeControl "180+2"]
[Date "2023.01.17"]
[WhiteClock "0:02:04"]
[BlackClock "0:00:20"]

1. d4 {[%clk 0:02:59]}  e6 {[%clk 0:03:00]} 2. Nf3 {[%clk 0:02:57]}  Nf6 {[%clk 0:03:01]} 3. c4 {[%clk 0:02:57]}  Bb4+ {[%clk 0:03:00]} 4. Nbd2 {[%clk 0:02:57]}  O-O {[%clk 0:02:59]} 5. a3 {[%clk 0:02:56]}  Be7 {[%clk 0:03:00]} 6. e4 {[%clk 0:02:57]}  d6 {[%clk 0:03:00]} 7. Be2 {[%clk 0:02:56]}  c5 {[%clk 0:02:58]} 8. d5 {[%clk 0:02:55]}  Nbd7 {[%clk 0:02:58]} 9. O-O {[%clk 0:02:54]}  e5 {[%clk 0:02:49]} 10. b4 {[%clk 0:02:53]}  Re8 {[%clk 0:02:44]} 11. Ne1 {[%clk 0:02:53]}  b6 {[%clk 0:02:40]} 12. Nd3 {[%clk 0:02:49]}  Bb7 {[%clk 0:02:28]} 13. Bb2 {[%clk 0:02:46]}  Nf8 {[%clk 0:02:00]} 14. Re1 {[%clk 0:02:38]}  Ng6 {[%clk 0:01:59]} 15. Bf1 {[%clk 0:02:36]}  Rc8 {[%clk 0:01:58]} 16. g3 {[%clk 0:02:35]}  b5 {[%clk 0:01:33]} 17. bxc5 {[%clk 0:02:25]}  dxc5 {[%clk 0:01:33]} 18. Nxe5 {[%clk 0:02:21]}  Nxe5 {[%clk 0:01:31]} 19. Bxe5 {[%clk 0:02:22]}  Nd7 {[%clk 0:01:32]} 20. Bc3 {[%clk 0:02:19]}  Bf6 {[%clk 0:01:32]} 21. Bxf6 {[%clk 0:02:15]}  Qxf6 {[%clk 0:01:30]} 22. cxb5 {[%clk 0:02:15]}  Ne5 {[%clk 0:01:22]} 23. f4 {[%clk 0:02:14]}  Nd3 {[%clk 0:01:22]} 24. e5 {[%clk 0:02:11]}  Qg6 {[%clk 0:01:03]} 25. Bxd3 {[%clk 0:02:10]}  Qxd3 {[%clk 0:01:03]} 26. Ne4 {[%clk 0:02:11]}  c4 {[%clk 0:00:43]} 27. Nd6 {[%clk 0:02:06]}  Bxd5 {[%clk 0:00:39]} 28. Nxe8 {[%clk 0:02:05]}  Rxe8 {[%clk 0:00:35]} 29. Qxd3 {[%clk 0:02:05]}  cxd3 {[%clk 0:00:36]} 30. Red1 {[%clk 0:02:05]}  Be4 {[%clk 0:00:31]} 31. Rac1 {[%clk 0:02:04]}  Rd8 {[%clk 0:00:28]} 32. Rd2 {[%clk 0:02:04]}  g6 {[%clk 0:00:26]} 33. Kf2 {[%clk 0:02:03]}  Rd5 {[%clk 0:00:26]} 34. Ke3 {[%clk 0:02:03]}  Bf5 {[%clk 0:00:26]} 35. a4 {[%clk 0:02:03]}  h5 {[%clk 0:00:26]} 36. Rc7 {[%clk 0:02:03]}  a6 {[%clk 0:00:26]} 37. b6 {[%clk 0:02:03]}  Kg7 {[%clk 0:00:18]} 38. b7 {[%clk 0:02:01]}  Rd8 {[%clk 0:00:18]} 39. Rc8 {[%clk 0:02:00]}  Rxc8 {[%clk 0:00:16]} 40. bxc8=Q {[%clk 0:02:00]}  Bxc8 {[%clk 0:00:17]} 41. Rxd3 {[%clk 0:02:00]}  Be6 {[%clk 0:00:17]} 42. Rd6 {[%clk 0:01:59]}  Bc4 {[%clk 0:00:17]} 43. a5 {[%clk 0:02:00]}  Kf8 {[%clk 0:00:15]} 44. h4 {[%clk 0:02:00]}  Ke7 {[%clk 0:00:15]} 45. Kd4 {[%clk 0:02:00]}  Bb5 {[%clk 0:00:16]} 46. Kc5 {[%clk 0:02:01]}  Be2 {[%clk 0:00:16]} 47. Kb6 {[%clk 0:02:01]}  f6 {[%clk 0:00:14]} 48. Rxf6 {[%clk 0:02:00]}  Bd3 {[%clk 0:00:15]} 49. Ka7 {[%clk 0:02:00]}  Ke8 {[%clk 0:00:14]} 50. Rxa6 {[%clk 0:02:00]}  Bxa6 {[%clk 0:00:14]} 51. Kxa6 {[%clk 0:02:01]}  Ke7 {[%clk 0:00:15]} 52. Kb7 {[%clk 0:02:02]}  Ke6 {[%clk 0:00:16]} 53. a6 {[%clk 0:02:03]}  g5 {[%clk 0:00:17]} 54. a7 {[%clk 0:02:03]}  gxh4 {[%clk 0:00:18]} 55. a8=Q {[%clk 0:02:04]}  Kf5 {[%clk 0:00:18]} 56. gxh4 {[%clk 0:02:04]}  Kg4 {[%clk 0:00:17]} 57. e6 {[%clk 0:02:04]}  Kxh4 {[%clk 0:00:18]} 58. Qg8 {[%clk 0:02:04]}  Kh3 {[%clk 0:00:18]} 59. e7 {[%clk 0:02:04]}  Kh2 {[%clk 0:00:18]} 60. e8=Q {[%clk 0:02:05]}  h4 {[%clk 0:00:19]} 61. Qe2+ {[%clk 0:02:04]}  Kh1 {[%clk 0:00:20]} 62. Qeg2# {[%clk 0:02:04]} 1-0


[Site "https://www.chess.com"]

[Event "Titled Tuesday Blitz January 17 Early 2023"]
[White "Aizpurua, Patrick Emilio"]
[Black "Movahed, Sina"]
[WhiteFideId "6600522"]
[BlackFideId "42520835"]
[WhiteElo "2304"]
[BlackElo "2340"]
[Result "0-1"]
[Round "02"]
[TimeControl "180+2"]
[Date "2023.01.17"]
[WhiteClock "0:01:02"]
[BlackClock "0:01:33"]

1. d4 {[%clk 0:03:00]}  Nf6 {[%clk 0:02:59]} 2. c4 {[%clk 0:03:00]}  g6 {[%clk 0:03:00]} 3. Nf3 {[%clk 0:03:00]}  Bg7 {[%clk 0:03:01]} 4. Nc3 {[%clk 0:03:00]}  O-O {[%clk 0:03:02]} 5. e4 {[%clk 0:02:58]}  d6 {[%clk 0:03:02]} 6. Be2 {[%clk 0:02:58]}  e5 {[%clk 0:03:03]} 7. Be3 {[%clk 0:02:57]}  exd4 {[%clk 0:03:04]} 8. Nxd4 {[%clk 0:02:58]}  Re8 {[%clk 0:03:04]} 9. Qc2 {[%clk 0:02:58]}  Nc6 {[%clk 0:02:58]} 10. Nxc6 {[%clk 0:02:57]}  bxc6 {[%clk 0:02:58]} 11. O-O {[%clk 0:02:56]}  Qe7 {[%clk 0:02:58]} 12. Bd3 {[%clk 0:02:54]}  Ng4 {[%clk 0:02:57]} 13. Bf4 {[%clk 0:02:52]}  Rb8 {[%clk 0:02:47]} 14. Rab1 {[%clk 0:02:49]}  h5 {[%clk 0:02:41]} 15. Rfe1 {[%clk 0:02:33]}  Bd4 {[%clk 0:02:39]} 16. Nd1 {[%clk 0:02:30]}  Qf6 {[%clk 0:02:34]} 17. Be3 {[%clk 0:02:25]}  Nxe3 {[%clk 0:02:33]} 18. Nxe3 {[%clk 0:02:26]}  h4 {[%clk 0:02:25]} 19. b3 {[%clk 0:02:18]}  h3 {[%clk 0:02:25]} 20. g3 {[%clk 0:02:18]}  a5 {[%clk 0:02:24]} 21. Bf1 {[%clk 0:02:11]}  Kg7 {[%clk 0:02:22]} 22. Rbd1 {[%clk 0:02:06]}  c5 {[%clk 0:02:19]} 23. Nd5 {[%clk 0:02:05]}  Qd8 {[%clk 0:02:18]} 24. Kh1 {[%clk 0:01:56]}  c6 {[%clk 0:02:16]} 25. Nf4 {[%clk 0:01:54]}  Rh8 {[%clk 0:02:16]} 26. Rxd4 {[%clk 0:01:43]}  cxd4 {[%clk 0:02:14]} 27. c5 {[%clk 0:01:44]}  d5 {[%clk 0:01:57]} 28. exd5 {[%clk 0:01:41]}  g5 {[%clk 0:01:57]} 29. Ne6+ {[%clk 0:01:31]}  fxe6 {[%clk 0:01:56]} 30. d6 {[%clk 0:01:31]}  Qf6 {[%clk 0:01:54]} 31. Kg1 {[%clk 0:01:25]}  e5 {[%clk 0:01:47]} 32. Bd3 {[%clk 0:01:25]}  Be6 {[%clk 0:01:43]} 33. Qd2 {[%clk 0:01:23]}  Bd5 {[%clk 0:01:43]} 34. Re2 {[%clk 0:01:13]}  Rbe8 {[%clk 0:01:34]} 35. d7 {[%clk 0:01:02]}  Re7 {[%clk 0:01:33]} 0-1


[Site "https://www.chess.com"]

[Event "Titled Tuesday Blitz January 17 Early 2023"]
[White "Kamsky, Gata"]
[Black "Korchmar, Vasiliy"]
[WhiteFideId "2000024"]
[BlackFideId "24131750"]
[WhiteElo "2665"]
[BlackElo "2438"]
[Result "1-0"]
[Round "02"]
[TimeControl "180+2"]
[Date "2023.01.17"]
[WhiteClock "0:00:55"]
[BlackClock "0:00:02"]

1. e4 {[%clk 0:03:00]}  c5 {[%clk 0:03:00]} 2. Nf3 {[%clk 0:03:00]}  d6 {[%clk 0:03:00]} 3. d4 {[%clk 0:02:59]}  cxd4 {[%clk 0:03:01]} 4. Nxd4 {[%clk 0:02:59]}  Nf6 {[%clk 0:03:01]} 5. Nc3 {[%clk 0:02:59]}  Nc6 {[%clk 0:03:02]} 6. Bg5 {[%clk 0:02:57]}  Bd7 {[%clk 0:03:02]} 7. Qd2 {[%clk 0:02:54]}  a6 {[%clk 0:03:02]} 8. Nxc6 {[%clk 0:02:46]}  bxc6 {[%clk 0:02:58]} 9. Bd3 {[%clk 0:02:45]}  e6 {[%clk 0:02:53]} 10. O-O {[%clk 0:02:44]}  Be7 {[%clk 0:02:53]} 11. Qe2 {[%clk 0:02:22]}  h6 {[%clk 0:02:33]} 12. Bd2 {[%clk 0:02:18]}  e5 {[%clk 0:02:11]} 13. Bxa6 {[%clk 0:02:14]}  Qb6 {[%clk 0:02:11]} 14. Bc4 {[%clk 0:02:13]}  Qxb2 {[%clk 0:02:04]} 15. a4 {[%clk 0:02:07]}  Qb6 {[%clk 0:01:41]} 16. Rfb1 {[%clk 0:02:02]}  Qc7 {[%clk 0:01:39]} 17. a5 {[%clk 0:01:49]}  O-O {[%clk 0:00:53]} 18. a6 {[%clk 0:01:47]}  Rfb8 {[%clk 0:00:44]} 19. Rxb8+ {[%clk 0:01:40]}  Qxb8 {[%clk 0:00:45]} 20. Rb1 {[%clk 0:01:39]}  Qd8 {[%clk 0:00:35]} 21. h3 {[%clk 0:01:38]}  Nxe4 {[%clk 0:00:15]} 22. Qxe4 {[%clk 0:01:31]}  d5 {[%clk 0:00:16]} 23. Nxd5 {[%clk 0:01:30]}  cxd5 {[%clk 0:00:16]} 24. Qxd5 {[%clk 0:01:30]}  Qe8 {[%clk 0:00:10]} 25. Qxe5 {[%clk 0:01:27]}  Bc6 {[%clk 0:00:05]} 26. Bf4 {[%clk 0:01:24]}  Qd7 {[%clk 0:00:03]} 27. Rb8+ {[%clk 0:01:21]}  Rxb8 {[%clk 0:00:03]} 28. Qxb8+ {[%clk 0:01:21]}  Kh7 {[%clk 0:00:04]} 29. Bd3+ {[%clk 0:01:21]}  g6 {[%clk 0:00:04]} 30. Be5 {[%clk 0:01:20]}  f6 {[%clk 0:00:04]} 31. Bb2 {[%clk 0:01:08]}  Qe6 {[%clk 0:00:04]} 32. Qc7 {[%clk 0:00:58]}  Qe1+ {[%clk 0:00:04]} 33. Bf1 {[%clk 0:00:57]}  Qe4 {[%clk 0:00:02]} 34. Bxf6 {[%clk 0:00:55]} 1-0


[Site "https://www.chess.com"]

[Event "Titled Tuesday Blitz January 17 Early 2023"]
[White "Iskusnyh, Sergei"]
[Black "Kovalenko, Igor"]
[WhiteFideId "4120027"]
[BlackFideId "14117908"]
[WhiteElo "2440"]
[BlackElo "2674"]
[Result "0-1"]
[Round "02"]
[TimeControl "180+2"]
[Date "2023.01.17"]
[WhiteClock "0:00:06"]
[BlackClock "0:00:24"]

1. d4 {[%clk 0:03:00]}  Nf6 {[%clk 0:02:58]} 2. c4 {[%clk 0:03:00]}  e6 {[%clk 0:02:58]} 3. g3 {[%clk 0:03:00]}  c5 {[%clk 0:02:57]} 4. Nf3 {[%clk 0:02:59]}  b6 {[%clk 0:02:54]} 5. Bg2 {[%clk 0:02:56]}  Bb7 {[%clk 0:02:54]} 6. d5 {[%clk 0:02:56]}  exd5 {[%clk 0:02:52]} 7. Nh4 {[%clk 0:02:50]}  Nc6 {[%clk 0:02:51]} 8. cxd5 {[%clk 0:02:39]}  Ne5 {[%clk 0:02:50]} 9. Nc3 {[%clk 0:02:30]}  d6 {[%clk 0:02:43]} 10. O-O {[%clk 0:02:29]}  g6 {[%clk 0:02:39]} 11. Nf3 {[%clk 0:02:15]}  Nxf3+ {[%clk 0:02:38]} 12. exf3 {[%clk 0:02:14]}  Bg7 {[%clk 0:02:34]} 13. Re1+ {[%clk 0:02:13]}  Kf8 {[%clk 0:02:34]} 14. f4 {[%clk 0:02:08]}  a6 {[%clk 0:02:30]} 15. a4 {[%clk 0:02:06]}  h5 {[%clk 0:02:28]} 16. f5 {[%clk 0:01:52]}  gxf5 {[%clk 0:02:24]} 17. Qd3 {[%clk 0:01:50]}  Qd7 {[%clk 0:02:23]} 18. Bf4 {[%clk 0:01:42]}  h4 {[%clk 0:02:19]} 19. Re2 {[%clk 0:01:29]}  hxg3 {[%clk 0:02:18]} 20. hxg3 {[%clk 0:01:27]}  Re8 {[%clk 0:02:18]} 21. Rae1 {[%clk 0:01:16]}  Rxe2 {[%clk 0:02:17]} 22. Qxe2 {[%clk 0:01:16]}  Bc8 {[%clk 0:02:14]} 23. Bf3 {[%clk 0:01:07]}  Bh6 {[%clk 0:02:01]} 24. Qe3 {[%clk 0:00:56]}  Kg7 {[%clk 0:01:55]} 25. Bxh6+ {[%clk 0:00:49]}  Rxh6 {[%clk 0:01:56]} 26. Ne2 {[%clk 0:00:49]}  Qxa4 {[%clk 0:01:42]} 27. Nf4 {[%clk 0:00:35]}  Qb4 {[%clk 0:01:20]} 28. Qe7 {[%clk 0:00:26]}  Ng8 {[%clk 0:01:08]} 29. Qg5+ {[%clk 0:00:20]}  Rg6 {[%clk 0:01:08]} 30. Nh5+ {[%clk 0:00:20]}  Kh7 {[%clk 0:01:07]} 31. Qe3 {[%clk 0:00:19]}  Bd7 {[%clk 0:00:57]} 32. Re2 {[%clk 0:00:18]}  Qd4 {[%clk 0:00:50]} 33. Qa3 {[%clk 0:00:16]}  a5 {[%clk 0:00:48]} 34. Kg2 {[%clk 0:00:16]}  a4 {[%clk 0:00:43]} 35. Re1 {[%clk 0:00:15]}  b5 {[%clk 0:00:40]} 36. Rh1 {[%clk 0:00:14]}  Rh6 {[%clk 0:00:40]} 37. Qa1 {[%clk 0:00:12]}  Nf6 {[%clk 0:00:34]} 38. Nxf6+ {[%clk 0:00:10]}  Qxf6 {[%clk 0:00:35]} 39. Re1 {[%clk 0:00:10]}  Kg7 {[%clk 0:00:33]} 40. Qc1 {[%clk 0:00:10]}  f4 {[%clk 0:00:29]} 41. g4 {[%clk 0:00:08]}  Rg6 {[%clk 0:00:24]} 42. Kf1 {[%clk 0:00:07]}  Bxg4 {[%clk 0:00:23]} 43. Bxg4 {[%clk 0:00:07]}  Rxg4 {[%clk 0:00:24]} 44. Qd1 {[%clk 0:00:06]}  Rh4 {[%clk 0:00:24]} 45. Qf3 {[%clk 0:00:06]}  Qf5 {[%clk 0:00:24]} 46. Re4 {[%clk 0:00:05]}  Qh3+ {[%clk 0:00:23]} 47. Qxh3 {[%clk 0:00:06]}  Rxh3 {[%clk 0:00:24]} 48. Rxf4 {[%clk 0:00:06]}  Rb3 {[%clk 0:00:24]} 0-1


[Site "https://www.chess.com"]

[Event "Titled Tuesday Blitz January 17 Early 2023"]
[White "Zhigalko, Sergei"]
[Black "Odegov, Artem"]
[WhiteFideId "13502956"]
[BlackFideId "34183644"]
[WhiteElo "2572"]
[BlackElo "2261"]
[Result "1/2-1/2"]
[Round "02"]
[TimeControl "180+2"]
[Date "2023.01.17"]
[WhiteClock "0:00:51"]
[BlackClock "0:01:07"]

1. e4 {[%clk 0:03:00]}  e6 {[%clk 0:02:55]} 2. d4 {[%clk 0:03:00]}  d5 {[%clk 0:02:53]} 3. e5 {[%clk 0:03:01]}  c5 {[%clk 0:02:51]} 4. c3 {[%clk 0:03:01]}  Qb6 {[%clk 0:02:44]} 5. Nf3 {[%clk 0:03:02]}  Nc6 {[%clk 0:02:44]} 6. Bd3 {[%clk 0:03:01]}  cxd4 {[%clk 0:02:42]} 7. O-O {[%clk 0:03:01]}  Bd7 {[%clk 0:02:42]} 8. Re1 {[%clk 0:03:00]}  Nge7 {[%clk 0:02:41]} 9. h4 {[%clk 0:02:59]}  Rc8 {[%clk 0:02:34]} 10. h5 {[%clk 0:02:59]}  h6 {[%clk 0:02:34]} 11. a3 {[%clk 0:02:59]}  dxc3 {[%clk 0:02:11]} 12. Nxc3 {[%clk 0:02:59]}  Na5 {[%clk 0:02:12]} 13. Be3 {[%clk 0:01:29]}  Qxb2 {[%clk 0:01:54]} 14. Nb5 {[%clk 0:01:25]}  Bxb5 {[%clk 0:01:54]} 15. Rb1 {[%clk 0:01:25]}  Qxa3 {[%clk 0:01:54]} 16. Bxb5+ {[%clk 0:01:21]}  Nec6 {[%clk 0:01:55]} 17. Bxa7 {[%clk 0:01:19]}  Bc5 {[%clk 0:01:32]} 18. Ra1 {[%clk 0:01:12]}  Qb4 {[%clk 0:01:30]} 19. Rb1 {[%clk 0:01:09]}  Qa3 {[%clk 0:01:13]} 20. Ra1 {[%clk 0:01:08]}  Qb4 {[%clk 0:01:13]} 21. Rb1 {[%clk 0:00:51]}  Qa3 {[%clk 0:01:07]} 1/2-1/2


[Site "https://www.chess.com"]

[Event "Titled Tuesday Blitz January 17 Early 2023"]
[White "Shankland, Sam"]
[Black "Ginzburg, Yakov"]
[WhiteFideId "2004887"]
[BlackFideId "4157176"]
[WhiteElo "2711"]
[BlackElo "2405"]
[Result "1-0"]
[Round "02"]
[TimeControl "180+2"]
[Date "2023.01.17"]
[WhiteClock "0:02:04"]
[BlackClock "0:00:01"]

1. d4 {[%clk 0:03:00]}  d5 {[%clk 0:02:59]} 2. c4 {[%clk 0:03:01]}  c6 {[%clk 0:02:59]} 3. Nc3 {[%clk 0:03:00]}  Nf6 {[%clk 0:02:59]} 4. e3 {[%clk 0:03:00]}  a6 {[%clk 0:02:56]} 5. Nf3 {[%clk 0:03:00]}  b5 {[%clk 0:02:56]} 6. b3 {[%clk 0:02:59]}  Bg4 {[%clk 0:02:56]} 7. Be2 {[%clk 0:02:58]}  e6 {[%clk 0:02:47]} 8. O-O {[%clk 0:02:57]}  Nbd7 {[%clk 0:02:40]} 9. Bb2 {[%clk 0:02:56]}  Bd6 {[%clk 0:02:36]} 10. Ne5 {[%clk 0:02:56]}  Bxe2 {[%clk 0:02:31]} 11. Nxe2 {[%clk 0:02:57]}  Bxe5 {[%clk 0:02:17]} 12. dxe5 {[%clk 0:02:56]}  Ng4 {[%clk 0:02:16]} 13. Nd4 {[%clk 0:02:52]}  Ndxe5 {[%clk 0:01:58]} 14. h3 {[%clk 0:02:50]}  Nf6 {[%clk 0:01:58]} 15. Nxe6 {[%clk 0:02:48]}  fxe6 {[%clk 0:01:56]} 16. Bxe5 {[%clk 0:02:48]}  O-O {[%clk 0:01:55]} 17. cxd5 {[%clk 0:02:47]}  Qxd5 {[%clk 0:01:29]} 18. Bxf6 {[%clk 0:02:40]}  Rxf6 {[%clk 0:01:19]} 19. Rc1 {[%clk 0:02:40]}  Rg6 {[%clk 0:01:13]} 20. Qxd5 {[%clk 0:02:37]}  exd5 {[%clk 0:01:13]} 21. Rc5 {[%clk 0:02:36]}  a5 {[%clk 0:01:05]} 22. Rfc1 {[%clk 0:02:36]}  Ra6 {[%clk 0:01:05]} 23. g4 {[%clk 0:02:32]}  Kf7 {[%clk 0:01:00]} 24. Kg2 {[%clk 0:02:32]}  Ke7 {[%clk 0:00:59]} 25. f4 {[%clk 0:02:31]}  Kd7 {[%clk 0:00:56]} 26. Kf3 {[%clk 0:02:28]}  a4 {[%clk 0:00:36]} 27. b4 {[%clk 0:02:25]}  a3 {[%clk 0:00:27]} 28. h4 {[%clk 0:02:23]}  Ra4 {[%clk 0:00:21]} 29. Rb1 {[%clk 0:02:21]}  Rd6 {[%clk 0:00:19]} 30. h5 {[%clk 0:02:19]}  d4 {[%clk 0:00:13]} 31. exd4 {[%clk 0:02:17]}  Rxd4 {[%clk 0:00:13]} 32. Rg5 {[%clk 0:02:18]}  Raxb4 {[%clk 0:00:12]} 33. Rxg7+ {[%clk 0:02:18]}  Kd6 {[%clk 0:00:10]} 34. Rxb4 {[%clk 0:02:18]}  Rxb4 {[%clk 0:00:10]} 35. Rxh7 {[%clk 0:02:18]}  Rb2 {[%clk 0:00:08]} 36. Ra7 {[%clk 0:02:18]}  Rxa2 {[%clk 0:00:08]} 37. h6 {[%clk 0:02:19]}  Rh2 {[%clk 0:00:08]} 38. g5 {[%clk 0:02:11]}  b4 {[%clk 0:00:09]} 39. f5 {[%clk 0:02:09]}  a2 {[%clk 0:00:06]} 40. Rxa2 {[%clk 0:02:07]}  Rxa2 {[%clk 0:00:05]} 41. h7 {[%clk 0:02:07]}  Ra8 {[%clk 0:00:05]} 42. g6 {[%clk 0:02:08]}  b3 {[%clk 0:00:04]} 43. g7 {[%clk 0:02:08]}  b2 {[%clk 0:00:05]} 44. h8=Q {[%clk 0:02:07]}  Rxh8 {[%clk 0:00:04]} 45. gxh8=Q {[%clk 0:02:08]}  b1=Q {[%clk 0:00:05]} 46. Qf6+ {[%clk 0:02:08]}  Kc7 {[%clk 0:00:05]} 47. Qe7+ {[%clk 0:02:08]}  Kb6 {[%clk 0:00:05]} 48. Qe3+ {[%clk 0:02:06]}  Kc7 {[%clk 0:00:05]} 49. Kf4 {[%clk 0:02:05]}  Qf1+ {[%clk 0:00:02]} 50. Kg5 {[%clk 0:02:05]}  Qg2+ {[%clk 0:00:02]} 51. Kf6 {[%clk 0:02:06]}  Qg8 {[%clk 0:00:01]} 52. Qe7+ {[%clk 0:02:05]}  Kb6 {[%clk 0:00:01]} 53. Qe6 {[%clk 0:02:04]}  Qf8+ {[%clk 0:00:01]} 54. Kg6 {[%clk 0:02:04]}  Kb5 {[%clk 0:00:01]} 55. f6 {[%clk 0:02:04]}  Kb4 {[%clk 0:00:01]} 56. Qe7+ {[%clk 0:02:04]} 1-0


[Site "https://www.chess.com"]

[Event "Titled Tuesday Blitz January 17 Early 2023"]
[White "Pham, Khoi"]
[Black "Moroni, Luca Jr"]
[WhiteFideId "1054988"]
[BlackFideId "865834"]
[WhiteElo "2355"]
[BlackElo "2535"]
[Result "0-1"]
[Round "02"]
[TimeControl "180+2"]
[Date "2023.01.17"]
[WhiteClock "0:00:40"]
[BlackClock "0:00:34"]

1. c4 {[%clk 0:03:00]}  g6 {[%clk 0:03:00]} 2. Nc3 {[%clk 0:03:00]}  Bg7 {[%clk 0:03:01]} 3. e4 {[%clk 0:03:00]}  d6 {[%clk 0:03:01]} 4. d4 {[%clk 0:02:59]}  c5 {[%clk 0:03:01]} 5. Nf3 {[%clk 0:02:59]}  Bg4 {[%clk 0:02:58]} 6. d5 {[%clk 0:02:57]}  Nd7 {[%clk 0:02:52]} 7. Be2 {[%clk 0:02:55]}  Bxc3+ {[%clk 0:02:47]} 8. bxc3 {[%clk 0:02:54]}  Ngf6 {[%clk 0:02:48]} 9. h3 {[%clk 0:02:52]}  Bxf3 {[%clk 0:02:46]} 10. Bxf3 {[%clk 0:02:53]}  Ne5 {[%clk 0:02:43]} 11. Qe2 {[%clk 0:02:49]}  Qa5 {[%clk 0:02:40]} 12. O-O {[%clk 0:02:22]}  Qxc3 {[%clk 0:02:12]} 13. Bf4 {[%clk 0:02:21]}  Qxc4 {[%clk 0:02:00]} 14. Qb2 {[%clk 0:02:08]}  Nxf3+ {[%clk 0:01:39]} 15. gxf3 {[%clk 0:02:06]}  b6 {[%clk 0:01:39]} 16. Rfc1 {[%clk 0:01:56]}  Qd3 {[%clk 0:01:29]} 17. Rc3 {[%clk 0:01:47]}  Qd4 {[%clk 0:01:24]} 18. Qc2 {[%clk 0:01:39]}  Nd7 {[%clk 0:01:16]} 19. Rd1 {[%clk 0:01:33]}  Qf6 {[%clk 0:01:10]} 20. Qd2 {[%clk 0:01:31]}  g5 {[%clk 0:01:09]} 21. Bg3 {[%clk 0:01:08]}  Ne5 {[%clk 0:01:09]} 22. Kg2 {[%clk 0:01:08]}  h5 {[%clk 0:01:01]} 23. a4 {[%clk 0:01:03]}  Ng6 {[%clk 0:00:49]} 24. a5 {[%clk 0:01:02]}  b5 {[%clk 0:00:49]} 25. Rb1 {[%clk 0:00:54]}  b4 {[%clk 0:00:47]} 26. Rcb3 {[%clk 0:00:51]}  h4 {[%clk 0:00:46]} 27. Bh2 {[%clk 0:00:51]}  Nf4+ {[%clk 0:00:47]} 28. Bxf4 {[%clk 0:00:50]}  gxf4 {[%clk 0:00:48]} 29. Kh2 {[%clk 0:00:49]}  Rg8 {[%clk 0:00:48]} 30. Qe2 {[%clk 0:00:45]}  Qg5 {[%clk 0:00:42]} 31. Qb5+ {[%clk 0:00:44]}  Kf8 {[%clk 0:00:41]} 32. Qf1 {[%clk 0:00:45]}  f6 {[%clk 0:00:38]} 33. Qh1 {[%clk 0:00:43]}  Kf7 {[%clk 0:00:37]} 34. Rf1 {[%clk 0:00:42]}  Rg6 {[%clk 0:00:34]} 35. Rbb1 {[%clk 0:00:43]}  Rag8 {[%clk 0:00:34]} 36. Rg1 {[%clk 0:00:40]}  Qxg1+ {[%clk 0:00:32]} 37. Rxg1 {[%clk 0:00:40]}  Rxg1 {[%clk 0:00:33]} 38. Qxg1 {[%clk 0:00:40]}  Rxg1 {[%clk 0:00:34]} 39. Kxg1 {[%clk 0:00:40]}  b3 {[%clk 0:00:34]} 0-1


[Site "https://www.chess.com"]